[Event "SixDays Budapest GM-A May 2024"]
[Site "Budapest"]
[Date "2024.05.18"]
[Round "5.4"]
[White "Bai, Adelard"]
[Black "Berczes, David"]
[Result "1-0"]
[ECO "A40"]
[WhiteElo "2376"]
[BlackElo "2425"]
[Annotator "TA"]
[PlyCount "53"]
[EventDate "2024.05.15"]
[EventType "tourn"]
[EventCountry "HUN"]
[SourceTitle "playchess.com"]
[Source "ChessBase"]
[SourceQuality "1"]
[TimeControl "40/5400+30:1800+30"]

{[%evp 9,53,29,41,-280,-270,-258,-271,-344,-354,-326,-303,-368,-300,-403,-319,-350,-339,-332,-356,-362,-384,-352,-153,-222,-210,-227,-209,-215,107,109,100,110,29986,29987,29991,29992,29992,29993,29993,29994,29994,29995,29995,29996,29996,29997]} 1. d4 {[%emt 0:00:04]} e6 {[%emt 0:03:12]} 2. c4 {[%emt 0:00:20]} b6 {[%emt 0:00:24]} 3. e4 {[%emt 0:01:11]} Bb4+ {[%emt 0:00:11]} 4. Nc3 {[%emt 0:01:31]} Bb7 {[%emt 0:00:05]} 5. Bd3 {[%emt 0:00:21]} f5 {[%emt 0:00:53]} 6. exf5 $2 {[%emt 0:00:30][%mdl 8192]} (6. Qh5+ $14 {keeps the upper hand.} g6 7. Qh3) 6... Bxg2 $19 {[%emt 0:02:19]} 7. Qh5+ {[%emt 0:00:20]} Kf8 $1 {[%emt 0:00:36]} (7... g6 $2 8. fxg6 Nf6 9. g7+ (9. gxh7+ $2 Nxh5 10. Bg6+ Kf8 $19) 9... Ke7 10. Bg5 $18 (10. gxh8=Q Qxh8 11. Bg5 Bxh1 $18)) 8. Nge2 {[%emt 0:01:37] aiming for Rg1. Black has a decisive advantage.} Nf6 {[%emt 0:02:19]} (8... Bxh1 9. f3 $19) 9. Qh4 {[%emt 0:01:58]} Bxh1 {[%emt 0:02:41]} 10. Bg5 {[%emt 0:03:25]} Bf3 {[%emt 0:22:39]} (10... Bxc3+ 11. Nxc3 h6 12. O-O-O $19) 11. Kf1 {[%emt 0:20:16]} exf5 {[%emt 0:27:08]} (11... Bxe2+ 12. Nxe2 exf5 13. Bxf5 $19) 12. Ng3 {[%emt 0:10:28]} Bxc3 {[%emt 0:22:19]} 13. bxc3 {[%emt 0:01:04]} Kf7 {[%emt 0:05:51] Strongly threatening ...h6.} 14. Nxf5 {[%emt 0:10:17]} Re8 {[%emt 0:03:38]} 15. c5 {[%emt 0:19:34] [#]} b5 {[%emt 0:00:04] Repels Bc4+} 16. Bxb5 {[%emt 0:03:29]} (16. a4 $17 {was necessary.}) 16... Bd5 $1 {[%emt 0:03:38]} 17. Bd3 {[%emt 0:05:18]} h6 {[%emt 0:00:31]} 18. Bf4 {[%emt 0:01:25] [#] Hoping for Qg3.} Nc6 $2 {[%emt 0:00:31] [#]} (18... Re4 $1 $19 {[%cal Ob8c6] White must now prevent ...Nc6!} 19. c4 Rxf4 20. Qxf4 Be6) 19. Qg3 $1 $16 {[%emt 0:06:29][%csl LRc7,LRg7] White is more active.} Nh5 {[%emt 0:00:29]} 20. Qg4 {[%emt 0:00:56] Dancing on a razor blade.} g6 {[%emt 0:00:31][%mdl 8192] [#]} (20... Nxf4 21. Qxg7+ Ke6 22. Re1+ (22. Qxh6+ $2 Qf6 $19) (22. Qxh6+ $2 Qf6 $19)) (20... Qf6 $16 21. Qxh5+ g6 22. Nd6+ (22. Nxh6+ Kg7 $14) 22... Qxd6 (22... cxd6 23. Qxd5+ Kg7 24. Bxd6 $16) 23. Qxh6 Rh8 24. cxd6 Rxh6 25. Bxh6 cxd6) 21. Nd6+ $1 {[%emt 0:02:05][%mdl 512] White mates.} Kf8 {[%emt 0:00:30]} (21... Kg8 22. Qxg6+) 22. Bxh6+ {[%emt 0:00:16] A strong pair of Bishops.} Ng7 {[%emt 0:00:25]} 23. Bxg7+ {[%emt 0:00:17]} (23. Nxe8 Qxe8 24. Bxg6 Bc4+ 25. Kg2 Qe7 $18) 23... Kxg7 {[%emt 0:00:34]} 24. Qxg6+ {[%emt 0:00:04]} (24. Nxe8+ $2 {perishes.} Qxe8 25. h4 Qe6 26. Qxe6 Bxe6 $19 (26... dxe6 $2 27. Rb1 $19)) 24... Kf8 {[%emt 0:00:12]} 25. Qh6+ {[%emt 0:00:09]} (25. Qxe8+ $2 {too greedy.} Qxe8 26. Nxe8 Rxe8 $19) 25... Kg8 {[%emt 0:00:31]} 26. Qh7+ {[%emt 0:00:25]} Kf8 {[%emt 0:00:20]} 27. Qh8+ {[%emt 0:00:08] Weighted Error Value: White=0.45/Black=0.72.  Loses game:     	---       	Black=1      Missed win:     	---       	Black=2      Mistake:       	White=1     	---        Inaccurate:     	White=1     	---        OK:         	White=7     	Black=6      Best:        	---       	Black=1      Strong:       	White=1     	Black=2      Brilliant:      	White=1     	---} 1-0

[Event "SixDays Budapest GM-A May 2024"]
[Site "Budapest"]
[Date "2024.05.18"]
[Round "5.5"]
[White "Krastev, Alexander"]
[Black "Tan, Jun Ying"]
[Result "0-1"]
[ECO "B53"]
[WhiteElo "2458"]
[BlackElo "2307"]
[Annotator "RC"]
[PlyCount "178"]
[EventDate "2024.05.15"]
[EventType "tourn"]
[EventCountry "HUN"]
[SourceTitle "playchess.com"]
[Source "ChessBase"]
[SourceQuality "1"]
[TimeControl "40/5400+30:1800+30"]

1. e4 {[%emt 0:00:02]} c5 {[%emt 0:00:06]} 2. Nf3 {[%emt 0:00:06]} d6 {[%emt 0:00:04]} 3. d4 {[%emt 0:02:19]} cxd4 {[%emt 0:00:05]} 4. Qxd4 {[%emt 0:00:21]} Nc6 {[%emt 0:00:10]} 5. Qe3 {[%emt 0:00:05]} g6 {[%emt 0:00:47]} 6. Be2 {[%emt 0:00:09]} Bg7 {[%emt 0:00:09]} 7. O-O {[%emt 0:00:10]} Nf6 {[%emt 0:00:12]} 8. h3 {[%emt 0:00:26]} O-O {[%emt 0:00:11]} 9. c4 {[%emt 0:00:21]} Qb6 {[%emt 0:00:35]} 10. Nc3 {[%emt 0:02:32]} Nd7 {[%emt 0:01:05]} 11. Qg5 {[%emt 0:03:49]} Bxc3 {[%emt 0:20:00]} 12. bxc3 {[%emt 0:00:07]} Nc5 {[%emt 0:00:31]} 13. Be3 {[%emt 0:14:23]} Be6 {[%emt 0:09:16]} 14. Nd4 {[%emt 0:34:50]} f6 {[%emt 0:03:15]} 15. Qh4 {[%emt 0:00:31]} Bf7 {[%emt 0:01:19]} 16. f4 {[%emt 0:24:28]} Qa5 {[%emt 0:24:16]} 17. Qe1 {[%emt 0:01:07]} Nxe4 {[%emt 0:09:50]} 18. Bf3 {[%emt 0:00:43]} Nc5 {[%emt 0:01:21]} 19. Nb3 {[%emt 0:04:03]} Qa4 {[%emt 0:04:42]} 20. Bd5 {[%emt 0:00:11]} e6 {[%emt 0:04:20]} 21. Bxc6 {[%emt 0:08:17]} Qxc6 {[%emt 0:00:05]} 22. Nxc5 {[%emt 0:00:04]} dxc5 {[%emt 0:00:05]} 23. Qh4 {[%emt 0:00:04]} Be8 {[%emt 0:02:04]} 24. Rad1 {[%emt 0:00:56]} b6 {[%emt 0:00:27]} 25. Rd2 {[%emt 0:00:06]} Qe4 {[%emt 0:02:16]} 26. Re1 {[%emt 0:00:36]} Qxc4 {[%emt 0:01:05]} 27. Rd6 {[%emt 0:00:04]} Rc8 {[%emt 0:04:34]} 28. Bf2 {[%emt 0:01:00]} Rc6 {[%emt 0:00:54]} 29. Rd8 {[%emt 0:00:02]} Rc7 {[%emt 0:02:08]} 30. Qh6 {[%emt 0:01:01]} Rd7 {[%emt 0:03:28]} 31. Rc8 {[%emt 0:01:21]} Qd5 {[%emt 0:00:43]} 32. Bh4 {[%emt 0:00:36]} Qb7 {[%emt 0:01:42]} 33. Rxe8 {[%emt 0:01:14]} Rxe8 34. Bxf6 {[%emt 0:00:08]} Rd2 {[%emt 0:01:54]} 35. Qg5 {[%emt 0:00:04]} Rd5 {[%emt 0:01:41]} 36. Be5 {[%emt 0:00:17]} Qe7 {[%emt 0:01:20]} 37. Qg4 {[%emt 0:00:44]} Qf7 {[%emt 0:00:26]} 38. Kh2 {[%emt 0:01:00]} Rf8 {[%emt 0:00:57]} 39. Re3 {[%emt 0:00:34]} Rxe5 {[%emt 0:00:26]} 40. fxe5 {[%emt 0:00:27]} Qf4+ {[%emt 0:00:00]} 41. Qxf4 {[%emt 0:30:38]} Rxf4 {[%emt 0:30:01]} 42. Rd3 {[%emt 0:00:07]} Ra4 {[%emt 0:00:52]} 43. Rd8+ {[%emt 0:00:33]} Kg7 {[%emt 0:00:14]} 44. Rd7+ {[%emt 0:00:05]} Kh6 {[%emt 0:01:40]} 45. Re7 {[%emt 0:00:00]} Rxa2 {[%emt 0:00:11]} 46. Rxe6 {[%emt 0:00:01]} Rc2 {[%emt 0:00:58]} 47. Re7 {[%emt 0:00:14]} Rxc3 {[%emt 0:00:21]} 48. Rxa7 {[%emt 0:00:02]} Re3 {[%emt 0:00:55]} 49. Rb7 {[%emt 0:00:06]} Rxe5 {[%emt 0:00:04]} 50. Rxb6 {[%emt 0:00:01]} Kg5 {[%emt 0:01:05]} 51. Kg3 {[%emt 0:01:48]} h5 {[%emt 0:00:06]} 52. Rc6 {[%emt 0:02:01]} h4+ {[%emt 0:00:31]} 53. Kf3 {[%emt 0:00:04]} Kf5 {[%emt 0:00:04]} 54. Rd6 {[%emt 0:01:22]} g5 {[%emt 0:01:19]} 55. Rc6 {[%emt 0:00:14]} Rd5 {[%emt 0:00:06]} 56. Ke3 {[%emt 0:00:04]} Ke5 {[%emt 0:00:29]} 57. Rg6 {[%emt 0:00:17]} Kf5 {[%emt 0:00:02]} 58. Rc6 {[%emt 0:00:03]} g4 {[%emt 0:00:27]} 59. Rh6 {[%emt 0:02:29]} Kg5 {[%emt 0:00:15]} 60. Rc6 {[%emt 0:00:31]} Re5+ {[%emt 0:00:52]} 61. Kf2 {[%emt 0:00:06]} Kf4 {[%emt 0:01:20]} 62. hxg4 {[%emt 0:00:05]} Kxg4 {[%emt 0:00:24]} 63. Rc8 {[%emt 0:00:36]} Rf5+ {[%emt 0:00:30]} 64. Kg1 {[%emt 0:00:13]} Kg5 65. Kh2 {[%emt 0:00:27]} Kg4 {[%emt 0:00:58]} 66. Rg8+ {[%emt 0:01:32]} Rg5 {[%emt 0:00:16]} 67. Rf8 {[%emt 0:00:09]} Kh5 {[%emt 0:00:19]} 68. Rh8+ {[%emt 0:00:19]} Kg4 {[%emt 0:00:02]} 69. Rf8 {[%emt 0:00:03]} Rf5 {[%emt 0:00:49]} 70. Rg8+ {[%emt 0:00:42]} Kf4 {[%emt 0:00:01]} 71. Kh3 {[%emt 0:01:00]} Rh5 {[%emt 0:00:10]} 72. Re8 {[%emt 0:00:49]} Rg5 {[%emt 0:00:51]} 73. Rc8 {[%emt 0:00:28]} Rg3+ {[%emt 0:00:21]} 74. Kh2 {[%emt 0:00:11]} Rc3 {[%emt 0:00:26]} 75. Rh8 {[%emt 0:00:05]} Kg4 {[%emt 0:00:09]} 76. Rg8+ {[%emt 0:00:07]} Kf5 {[%emt 0:00:13]} 77. Rh8 {[%emt 0:00:03]} Rc4 {[%emt 0:00:13]} 78. Kh3 {[%emt 0:00:40]} Ke6 {[%emt 0:01:04]} 79. g3 {[%emt 0:01:55]} hxg3 {[%emt 0:00:06]} 80. Kxg3 {[%emt 0:00:00]} Rd4 {[%emt 0:00:49]} 81. Rh5 {[%emt 0:00:58]} Rd5 {[%emt 0:01:23]} 82. Rh6+ {[%emt 0:00:28]} Ke5 {[%emt 0:00:06]} 83. Kf3 {[%emt 0:00:31]} Kd4 {[%emt 0:00:06]} 84. Ke2 {[%emt 0:00:06]} Kc3 {[%emt 0:00:15]} 85. Rh3+ {[%emt 0:00:31]} Kb4 {[%emt 0:00:21]} 86. Rd3 {[%emt 0:00:56]} Rxd3 {[%emt 0:00:10]} 87. Kxd3 {[%emt 0:00:01]} Kb3 {[%emt 0:00:04]} 88. Kd2 {[%emt 0:00:04]} c4 {[%emt 0:00:09]} 89. Kc1 {[%emt 0:00:04]} Kc3 {[%emt 0:00:06]} 0-1

[Event "SixDays Budapest GM-A May 2024"]
[Site "Budapest"]
[Date "2024.05.19"]
[Round "6.1"]
[White "Ramoutar, Alan-Safar"]
[Black "Tan, Jun Ying"]
[Result "0-1"]
[ECO "B10"]
[WhiteElo "2360"]
[BlackElo "2307"]
[Annotator "RC"]
[PlyCount "142"]
[EventDate "2024.05.15"]
[EventType "tourn"]
[EventCountry "HUN"]
[SourceTitle "playchess.com"]
[Source "ChessBase"]
[SourceQuality "1"]
[TimeControl "40/5400+30:1800+30"]

1. e4 {[%emt 0:00:05]} c6 {[%emt 0:00:05]} 2. Nf3 {[%emt 0:00:46]} d5 {[%emt 0:00:05]} 3. exd5 {[%emt 0:00:32]} cxd5 {[%emt 0:00:06]} 4. Ne5 {[%emt 0:00:08]} Nc6 {[%emt 0:00:07]} 5. d4 {[%emt 0:00:21]} a6 {[%emt 0:00:12]} 6. Be2 {[%emt 0:00:12]} e6 {[%emt 0:00:55]} 7. Nxc6 {[%emt 0:00:15]} bxc6 {[%emt 0:00:03]} 8. Bf4 {[%emt 0:00:14]} Bd6 {[%emt 0:05:34]} 9. Bxd6 {[%emt 0:00:28]} Qxd6 {[%emt 0:00:03]} 10. O-O {[%emt 0:00:44]} Ne7 {[%emt 0:04:26]} 11. Nd2 {[%emt 0:04:18]} O-O {[%emt 0:02:46]} 12. Nb3 {[%emt 0:07:35]} f6 {[%emt 0:01:35]} 13. c4 {[%emt 0:01:36]} e5 {[%emt 0:06:44]} 14. Rc1 {[%emt 0:01:51]} Nf5 {[%emt 0:09:58]} 15. Bg4 {[%emt 0:28:03]} dxc4 {[%emt 0:10:06]} 16. Rxc4 {[%emt 0:01:34]} Be6 {[%emt 0:14:49]} 17. Qd3 {[%emt 0:13:53]} Nxd4 {[%emt 0:05:26]} 18. Bxe6+ {[%emt 0:02:52]} Qxe6 {[%emt 0:00:03]} 19. Nxd4 {[%emt 0:00:12]} exd4 {[%emt 0:03:22]} 20. Qxd4 {[%emt 0:00:06]} Rfd8 {[%emt 0:08:20]} 21. Qc3 {[%emt 0:00:45]} Rab8 {[%emt 0:01:54]} 22. Re1 {[%emt 0:03:59]} Qd5 {[%emt 0:02:17]} 23. b3 {[%emt 0:02:06]} Qd2 {[%emt 0:10:57]} 24. Qxd2 {[%emt 0:11:25]} Rxd2 {[%emt 0:00:01]} 25. Ra4 {[%emt 0:01:28]} Rb6 {[%emt 0:00:17]} 26. g3 {[%emt 0:01:31]} Kf7 {[%emt 0:00:08]} 27. Rc1 {[%emt 0:00:40]} Ke6 {[%emt 0:01:04]} 28. Rc5 {[%emt 0:00:34]} Rd5 {[%emt 0:02:57]} 29. Rc2 {[%emt 0:00:20]} Kd6 {[%emt 0:01:25]} 30. Kg2 {[%emt 0:00:49]} a5 {[%emt 0:01:38]} 31. Rac4 {[%emt 0:00:45]} c5 {[%emt 0:00:22]} 32. Ra4 {[%emt 0:00:43]} Rb5 {[%emt 0:00:12]} 33. Kf3 {[%emt 0:03:51]} f5 {[%emt 0:01:11]} 34. h4 {[%emt 0:00:15]} g6 {[%emt 0:02:18]} 35. Re2 {[%emt 0:01:19]} Rd4 {[%emt 0:01:07]} 36. Ra3 {[%emt 0:06:05]} a4 {[%emt 0:00:10]} 37. bxa4 {[%emt 0:00:30]} Ra5 {[%emt 0:00:17]} 38. Rb3 {[%emt 0:03:23]} Rdxa4 {[%emt 0:00:35]} 39. Rd3+ {[%emt 0:00:46]} Kc6 {[%emt 0:01:12]} 40. Re6+ {[%emt 0:00:50]} Kb5 {[%emt 0:00:11]} 41. Rb3+ {[%emt 0:30:40]} Rb4 {[%emt 0:31:30]} 42. Re7 {[%emt 0:00:54]} Rxa2 {[%emt 0:00:22]} 43. Rxb4+ {[%emt 0:01:15]} cxb4 {[%emt 0:00:11]} 44. Rxh7 {[%emt 0:00:03]} b3 {[%emt 0:03:08]} 45. Rb7+ {[%emt 0:00:04]} Kc4 {[%emt 0:00:05]} 46. Rc7+ {[%emt 0:01:52]} Kd3 {[%emt 0:00:33]} 47. Rb7 {[%emt 0:00:09]} Kc3 {[%emt 0:01:54]} 48. Ke3 {[%emt 0:00:08]} b2 {[%emt 0:00:35]} 49. Rc7+ {[%emt 0:00:10]} Kb3 {[%emt 0:00:16]} 50. Rb7+ {[%emt 0:00:02]} Kc2 {[%emt 0:00:08]} 51. Rc7+ {[%emt 0:00:08]} Kd1 {[%emt 0:00:20]} 52. Rd7+ {[%emt 0:00:56]} Kc1 {[%emt 0:00:28]} 53. Rc7+ {[%emt 0:00:08]} Kb1 {[%emt 0:00:08]} 54. Kf4 {[%emt 0:02:35]} Ka1 {[%emt 0:01:23]} 55. Rb7 {[%emt 0:00:06]} Ra4+ {[%emt 0:00:42]} 56. Ke5 {[%emt 0:00:47]} b1=Q {[%emt 0:01:04]} 57. Rxb1+ {[%emt 0:00:02]} Kxb1 {[%emt 0:00:02]} 58. f3 {[%emt 0:00:16]} Kc2 {[%emt 0:00:58]} 59. Kf6 {[%emt 0:00:01]} Ra6+ {[%emt 0:00:21]} 60. Kg5 {[%emt 0:00:05]} Kd3 {[%emt 0:00:16]} 61. g4 {[%emt 0:00:26]} Ke3 {[%emt 0:00:56]} 62. gxf5 {[%emt 0:00:21]} gxf5 {[%emt 0:00:02]} 63. Kxf5 {[%emt 0:00:12]} Kxf3 {[%emt 0:00:08]} 64. h5 {[%emt 0:00:08]} Ra5+ {[%emt 0:00:35]} 65. Kg6 {[%emt 0:00:18]} Kg4 {[%emt 0:00:09]} 66. h6 {[%emt 0:00:07]} Ra6+ {[%emt 0:00:06]} 67. Kg7 {[%emt 0:00:34]} Kg5 {[%emt 0:00:08]} 68. h7 {[%emt 0:00:46]} Ra7+ {[%emt 0:00:05]} 69. Kg8 {[%emt 0:00:59]} Kg6 {[%emt 0:00:08]} 70. h8=N+ {[%emt 0:00:24]} Kf6 {[%emt 0:00:04]} 71. Nf7 {[%emt 0:02:16]} Rxf7 {[%emt 0:00:08]} 0-1

[Event "SixDays Budapest GM-A May 2024"]
[Site "Budapest"]
[Date "2024.05.19"]
[Round "6.2"]
[White "Berczes, David"]
[Black "Krastev, Alexander"]
[Result "1-0"]
[ECO "E06"]
[WhiteElo "2425"]
[BlackElo "2458"]
[Annotator "TA"]
[PlyCount "91"]
[EventDate "2024.05.15"]
[EventType "tourn"]
[EventCountry "HUN"]
[SourceTitle "playchess.com"]
[Source "ChessBase"]
[SourceQuality "1"]
[TimeControl "40/5400+30:1800+30"]

{[%evp 12,91,22,16,22,16,16,1,29,0,4,0,0,0,6,-14,0,0,8,12,19,0,0,0,0,0,0,0,0,-7,16,0,0,0,0,0,0,-16,60,47,60,29,14,17,225,231,239,233,237,245,220,212,228,206,197,186,417,423,540,527,531,533,527,516,560,556,611,395,955,1014,998,997,893,462,759,789,779,791,781,770,716,664]} 1. d4 {[%emt 0:12:29]} d5 {[%emt 0:00:08]} 2. c4 {[%emt 0:01:04]} e6 {[%emt 0:00:05]} 3. Nf3 {[%emt 0:00:05]} Nf6 {[%emt 0:00:09]} 4. g3 {[%emt 0:00:06]} Be7 {[%emt 0:00:14]} 5. Bg2 {[%emt 0:00:22]} O-O {[%emt 0:00:08]} 6. O-O {[%emt 0:03:03]} c6 {[%emt 0:00:24]} 7. Nc3 {[%emt 0:06:44]} a5 {[%emt 0:00:20]} 8. b3 {[%emt 0:02:34]} b6 {[%emt 0:03:37]} 9. Nd2 {[%emt 0:07:52]} Ba6 {[%emt 0:09:51] The position is equal.} 10. a4 {[%emt 0:06:25]} Ra7 {[%emt 0:05:40]} 11. Bb2 {[%emt 0:03:08]} Rd7 {[%emt 0:13:19]} 12. e3 {[%emt 0:24:49]} e5 {[%emt 0:32:52]} 13. Ne2 {[%emt 0:10:17][%cal Bc3e2,Be2f4,Bf4d3][%mdl 32]} (13. dxe5 dxc4 14. Ncb1 (14. exf6 Bxf6 15. bxc4 Rxd2 $17) 14... c3 15. Bxc3 Nd5 $15) 13... exd4 {[%emt 0:02:46]} 14. exd4 {[%emt 0:08:47]} ({Reject} 14. Nxd4 dxc4 15. Qc1 (15. bxc4 Bb4 $19) (15. Nxc4 $2 {perishes.} c5 $19) 15... c3 16. Bxc3 Bxf1 17. Bxf1 Bb4 18. Bxb4 axb4 $17) 14... Bb4 {[%emt 0:00:19]} 15. Rc1 {[%emt 0:00:32]} Re8 {[%emt 0:01:04]} 16. Nf4 {[%emt 0:01:07]} Rde7 {[%emt 0:14:44]} 17. Nf3 {[%emt 0:00:33]} Ne4 {[%emt 0:00:09]} 18. Nd3 {[%emt 0:01:52]} Bd6 {[%emt 0:10:07]} 19. Nfe5 {[%emt 0:02:39]} f6 {[%emt 0:00:39]} 20. Nf3 {[%emt 0:01:31]} Nd7 {[%emt 0:00:41]} 21. Nh4 {[%emt 0:00:44]} g6 {[%emt 0:00:22] Wards off Nf5} 22. Nf3 {[%emt 0:01:04]} Nf8 {[%emt 0:01:36]} 23. Qc2 {[%emt 0:01:54]} Qd7 {[%emt 0:00:27]} 24. Rfd1 {[%emt 0:01:14]} Bb7 {[%emt 0:00:09]} (24... Ne6 $11) 25. c5 $14 {[%emt 0:00:25]} bxc5 {[%emt 0:00:06]} 26. dxc5 {[%emt 0:00:19]} Bc7 {[%emt 0:00:12]} 27. b4 {[%emt 0:00:43]} Ba6 {[#] This move loses the game for Black.} (27... axb4 $1 $11 {and Black has nothing to worry.} 28. Nxb4 Qc8) 28. b5 $1 $18 {[%emt 0:00:21][%mdl 512]} cxb5 {[%emt 0:03:23]} (28... Bb7 29. Nd4) 29. c6 {[%emt 0:00:06]} Qc8 {[%emt 0:00:14]} 30. axb5 {[%emt 0:01:47]} Bxb5 {[%emt 0:00:01]} 31. Nc5 {[%emt 0:00:05]} Bc4 {[%emt 0:00:55]} 32. Nxe4 {[%emt 0:00:40]} Rxe4 {[%emt 0:00:01]} 33. Qc3 {[%emt 0:00:59]} Be5 {[%emt 0:01:40]} (33... R4e6 {was necessary.}) 34. Nxe5 {[%emt 0:00:10]} R4xe5 {[%emt 0:00:01]} 35. Qxa5 {[%emt 0:00:36]} R5e6 {[%emt 0:01:03]} 36. Bxd5 {[%emt 0:00:42] Black is weak on the dark squares} Bxd5 {[%emt 0:00:08]} 37. Qxd5 {[%emt 0:00:04]} Qc7 {[%emt 0:00:33]} 38. Kg2 {[%emt 0:01:06]} Kg7 {[%emt 0:00:50]} 39. Rd3 {[%emt 0:00:20][%cal Bd1d3,Bd3b3,Bb3b7][%mdl 32] [#] aiming for Rb3.} Re2 $2 {[%emt 0:00:31]} (39... Rc8 40. Ba3 Qf7) 40. Rb3 {[%emt 0:00:27] Rb7 would now be deadly. White is clearly winning.} Qf7 {[%emt 0:00:29]} 41. Rb7 {[%emt 0:30:37][%cal Ob2f6] White threatens Bxf6+! and mate.} R2e7 {[%emt 0:30:12]} 42. Qxf7+ {[%emt 0:00:35]} Kxf7 {[%emt 0:00:04]} (42... Rxf7 $142 43. Ra1 Ree7) 43. Ba3 {[%emt 0:00:30]} Rxb7 {[%emt 0:01:01]} 44. cxb7 {[%emt 0:00:02] Rc7+ would kill now.} Nd7 {[%emt 0:00:07]} 45. Rc7 {[%emt 0:00:19]} Ke6 {[%emt 0:00:16]} 46. Rc8 {[%emt 0:00:05] Weighted Error Value: White=0.32/Black=0.33.  Loses game:     	---       	Black=1      Mistake:       	---       	Black=3      Inaccurate:     	White=3     	---        OK:         	White=9     	Black=18     Best:        	White=3     	---        Brilliant:      	White=1     	---} 1-0

[Event "SixDays Budapest GM-A May 2024"]
[Site "Budapest"]
[Date "2024.05.19"]
[Round "6.3"]
[White "Nagy, Gabor"]
[Black "Bai, Adelard"]
[Result "1/2-1/2"]
[ECO "E47"]
[WhiteElo "2433"]
[BlackElo "2376"]
[Annotator "TA"]
[PlyCount "21"]
[EventDate "2024.05.15"]
[EventType "tourn"]
[EventCountry "HUN"]
[SourceTitle "playchess.com"]
[Source "ChessBase"]
[SourceQuality "1"]
[TimeControl "40/5400+30:1800+30"]

{[%evp 16,21,0,0,12,0,3,1]} 1. d4 {[%emt 0:00:04]} Nf6 {[%emt 0:00:28]} 2. c4 {[%emt 0:00:18]} e6 {[%emt 0:00:05]} 3. Nc3 {[%emt 0:00:41]} Bb4 {[%emt 0:00:21]} 4. e3 {[%emt 0:00:30]} O-O {[%emt 0:00:10]} 5. Bd3 {[%emt 0:00:17]} c5 {[%emt 0:01:01]} 6. Nge2 {[%emt 0:00:30]} cxd4 {[%emt 0:01:05]} 7. exd4 {[%emt 0:00:23]} d5 {[%emt 0:00:28]} 8. cxd5 Nxd5 {[%emt 0:00:58]} 9. O-O {[%emt 0:00:23] The position is equal.} Nc6 {[%emt 0:00:24]} 10. Nxd5 {[%emt 0:00:10]} exd5 {[%emt 0:06:34]} 11. Nf4 {[%emt 0:01:43] An uneventful encounter.   OK:         	White=1     	---} 1/2-1/2

[Event "SixDays Budapest GM-A May 2024"]
[Site "Budapest"]
[Date "2024.05.19"]
[Round "6.4"]
[White "Sahib Singh"]
[Black "Aczel, Gergely"]
[Result "0-1"]
[ECO "B10"]
[WhiteElo "2291"]
[BlackElo "2493"]
[Annotator "RC"]
[PlyCount "120"]
[EventDate "2024.05.15"]
[EventType "tourn"]
[EventCountry "HUN"]
[SourceTitle "playchess.com"]
[Source "ChessBase"]
[SourceQuality "1"]
[TimeControl "40/5400+30:1800+30"]

1. e4 {[%emt 0:00:03]} c6 {[%emt 0:02:08]} 2. Nf3 {[%emt 0:00:05]} d5 {[%emt 0:01:49]} 3. Nc3 {[%emt 0:00:04]} dxe4 {[%emt 0:00:08]} 4. Nxe4 {[%emt 0:00:05]} Nf6 {[%emt 0:00:06]} 5. Qe2 {[%emt 0:00:04]} Bf5 {[%emt 0:00:08]} 6. Nxf6+ {[%emt 0:00:05]} gxf6 {[%emt 0:00:05]} 7. d3 {[%emt 0:00:25]} c5 {[%emt 0:00:22]} 8. g3 {[%emt 0:01:41]} Nc6 {[%emt 0:00:10]} 9. Bg2 {[%emt 0:03:06]} Qd7 {[%emt 0:00:09]} 10. Be3 {[%emt 0:01:01]} Nd4 {[%emt 0:00:40]} 11. Bxd4 {[%emt 0:10:42]} cxd4 {[%emt 0:00:07]} 12. O-O {[%emt 0:00:09]} Rc8 {[%emt 0:00:08]} 13. Rac1 {[%emt 0:02:51]} Rc7 {[%emt 1:00:08]} 14. Nh4 {[%emt 0:06:09]} Bg4 {[%emt 0:00:11]} 15. f3 {[%emt 0:08:34]} Be6 {[%emt 0:00:16]} 16. f4 {[%emt 0:03:10]} h5 {[%emt 0:07:00]} 17. Qe4 {[%emt 0:02:24]} f5 {[%emt 0:04:58]} 18. Qe5 {[%emt 0:00:36]} Rg8 {[%emt 0:03:34]} 19. Qe2 {[%emt 0:00:38]} Bg7 {[%emt 0:00:24]} 20. Bf3 {[%emt 0:33:19]} Bf6 {[%emt 0:00:25]} 21. Ng2 {[%emt 0:02:29]} h4 {[%emt 0:01:01]} 22. gxh4 {[%emt 0:04:26]} Bxh4 {[%emt 0:00:23]} 23. Kh1 {[%emt 0:00:08]} Bf6 {[%emt 0:00:06]} 24. Qd2 {[%emt 0:05:04]} Qa4 {[%emt 0:07:44]} 25. c4 {[%emt 0:00:26]} dxc3 {[%emt 0:00:48]} 26. bxc3 {[%emt 0:00:04]} Qxa2 {[%emt 0:00:59]} 27. Qxa2 {[%emt 0:00:49]} Bxa2 {[%emt 0:00:04]} 28. Ra1 {[%emt 0:00:26]} Be6 {[%emt 0:00:13]} 29. Rxa7 {[%emt 0:00:23]} Rxc3 {[%emt 0:00:59]} 30. Ra8+ {[%emt 0:04:14]} Rc8 {[%emt 0:03:02]} 31. Bxb7 {[%emt 0:01:17]} Rxa8 {[%emt 0:00:07]} 32. Bxa8 {[%emt 0:00:06]} Kd7 {[%emt 0:01:40]} 33. Bf3 {[%emt 0:00:03]} Rh8 {[%emt 0:01:33]} 34. h4 {[%emt 0:04:33]} Bxh4 {[%emt 0:00:32]} 35. Nxh4 {[%emt 0:00:03]} Rxh4+ {[%emt 0:00:04]} 36. Kg2 {[%emt 0:00:04]} Kd6 {[%emt 0:01:58]} 37. Kg3 {[%emt 0:00:03]} Rh8 {[%emt 0:00:14]} 38. Ra1 {[%emt 0:02:44]} Kc5 {[%emt 0:02:49]} 39. Ra7 {[%emt 0:00:06]} Kd4 {[%emt 0:00:32]} 40. Kf2 {[%emt 0:01:26]} Rh2+ {[%emt 0:00:02]} 41. Kg3 {[%emt 0:30:05]} Rh7 {[%emt 0:30:16]} 42. Rxe7 {[%emt 0:03:58]} Ke3 {[%emt 0:00:06]} 43. Bd5 {[%emt 0:00:16]} Rg7+ {[%emt 0:00:10]} 44. Kh3 {[%emt 0:00:47]} Rg6 {[%emt 0:00:08]} 45. Bxe6 {[%emt 0:01:17]} fxe6 {[%emt 0:00:07]} 46. Kh4 {[%emt 0:00:13]} Kxf4 {[%emt 0:00:18]} 47. Kh5 {[%emt 0:00:04]} Rg3 {[%emt 0:01:32]} 48. d4 {[%emt 0:00:55]} Re3 {[%emt 0:01:23]} 49. Kg6 {[%emt 0:00:05]} Re4 {[%emt 0:00:46]} 50. Kf6 {[%emt 0:00:41]} Rxd4 {[%emt 0:00:17]} 51. Rxe6 {[%emt 0:00:03]} Ra4 {[%emt 0:01:29]} 52. Re1 {[%emt 0:00:29]} Ra6+ {[%emt 0:00:07]} 53. Kf7 {[%emt 0:00:02]} Kg3 {[%emt 0:00:24]} 54. Rg1+ {[%emt 0:01:43]} Kf2 {[%emt 0:00:06]} 55. Rg5 {[%emt 0:01:06]} f4 {[%emt 0:00:06]} 56. Ke7 {[%emt 0:00:33]} f3 {[%emt 0:00:04]} 57. Rb5 {[%emt 0:00:26]} Kg2 {[%emt 0:00:07]} 58. Rg5+ {[%emt 0:00:05]} Kf1 {[%emt 0:00:05]} 59. Kd7 {[%emt 0:00:18]} f2 {[%emt 0:00:04]} 60. Ke7 {[%emt 0:00:17]} Ra1 {[%emt 0:00:09]} 0-1